fUST/lending_fUST_20250709
["ID","MTS","AMOUNT","RATE_DAILY","PERIOD"]
[370415222,1752009042915,-460.0,0.00019452,2]
[370415223,1752009042924,-331.35,0.00019452,2]
[370415224,1752009042934,-460.0,0.00019452,2]
[370415225,1752009042943,-460.0,0.00019452,2]
[370415226,1752009042953,-460.0,0.00019452,2]
[370415227,1752009042962,-460.0,0.00019452,2]
[370415228,1752009042972,-460.0,0.00019452,2]
[370415229,1752009042982,-460.0,0.00019452,2]
[370415230,1752009042992,-717.41,0.00019452,2]
[370415231,1752009043001,-460.0,0.00019452,2]
[370415232,1752009043010,-562.72,0.00019452,2]
[370415233,1752009043020,-460.0,0.00019452,2]
[370415234,1752009043030,-460.0,0.00019452,2]
[370415235,1752009043039,-460.0,0.00019452,2]
[370415236,1752009043048,-867.54,0.00019452,2]
[370415237,1752009043058,-460.0,0.00019452,2]
[370415238,1752009043067,-460.0,0.00019452,2]
[370415239,1752009043076,-2251.31,0.00019452,2]
[370415240,1752009043085,-460.0,0.00019452,2]
[370415241,1752009043095,-460.0,0.00019452,2]
[370415242,1752009043104,-550.03,0.00019452,2]
[370415244,1752009043114,-740.9,0.00019452,2]
[370415246,1752009043124,-1626.65,0.00019452,2]
[370415247,1752009043133,-466.02,0.00019452,2]
[370415249,1752009043142,-460.0,0.00019452,2]
[370415250,1752009043151,-877.06,0.00019452,2]
[370415251,1752009043160,-460.0,0.00019452,2]
[370415252,1752009043169,-460.0,0.00019452,2]
[370415253,1752009043179,-460.0,0.00019452,2]
[370415254,1752009043188,-358.66426709,0.00019452,2]
[370415255,1752009043197,-609.28,0.00019452,2]
[370415256,1752009043206,-460.0,0.00019452,2]
[370415257,1752009043215,-460.0,0.00019452,2]
[370415258,1752009043225,-460.0,0.00019452,2]
[370415259,1752009043239,-460.0,0.00019452,2]
[370415260,1752009043249,-475.78,0.00019452,2]
[370415261,1752009043258,-460.0,0.00019452,2]
[370415262,1752009043268,-768.05,0.00019452,2]
[370415263,1752009043279,-460.0,0.00019452,2]
[370415264,1752009043287,-460.0,0.00019452,2]
[370415265,1752009043297,-460.0,0.00019452,2]
[370415266,1752009043307,-460.0,0.00019452,2]
[370415267,1752009043316,-460.0,0.00019452,2]
[370415268,1752009043326,-584.58,0.00019452,2]
[370415269,1752009043335,-460.0,0.00019452,2]
[370415270,1752009043344,-460.0,0.00019452,2]
[370415271,1752009043353,-1330.68,0.00019452,2]
[370415272,1752009043363,-460.0,0.00019452,2]
[370415273,1752009043372,-1675.2,0.00019452,2]
[370415274,1752009043382,-1430.67,0.00019452,2]
[370415275,1752009043391,-460.0,0.00019452,2]
[370415276,1752009043402,-460.0,0.00019452,2]
[370415277,1752009043414,-460.0,0.00019452,2]
[370415278,1752009043423,-460.0,0.00019452,2]
[370415279,1752009043432,-460.0,0.00019452,2]
[370415280,1752009043441,-479.62,0.00019452,2]
[370415281,1752009043450,-460.0,0.00019452,2]
[370415282,1752009043459,-2569.93,0.00019452,2]
[370415283,1752009043468,-460.0,0.00019452,2]
[370415284,1752009043477,-496.02,0.00019452,2]
[370415285,1752009043486,-460.0,0.00019452,2]
[370415286,1752009043495,-460.0,0.00019452,2]
[370415287,1752009043504,-460.0,0.00019452,2]
[370415288,1752009043513,-506.1,0.00019452,2]
[370415289,1752009043522,-460.0,0.00019452,2]
[370415290,1752009043531,-460.0,0.00019452,2]
[370415291,1752009043540,-460.0,0.00019452,2]
[370415292,1752009043550,-193.08403378,0.00019452,2]
[370415293,1752009043559,-460.0,0.00019452,2]
[370415294,1752009043569,-275.5978787,0.00019452,2]
[370415295,1752009043578,-460.0,0.00019452,2]
[370415296,1752009043587,-460.0,0.00019452,2]
[370415297,1752009043597,-636.47,0.00019452,2]
[370415298,1752009043606,-921.44,0.00019452,2]
[370415299,1752009043615,-356.03,0.00019452,2]
[370415300,1752009043625,-460.0,0.00019452,2]
[370415301,1752009043634,-460.0,0.00019452,2]
[370415302,1752009043643,-460.0,0.00019452,2]
[370415303,1752009043652,-460.0,0.00019452,2]
[370415304,1752009043661,-899.34,0.00019452,2]
[370415305,1752009043671,-538.09417983,0.00019452,2]
[370415306,1752009043680,-460.0,0.00019452,2]
[370415307,1752009043691,-781.95,0.00019452,2]
[370415308,1752009043700,-460.0,0.00019452,2]
[370415309,1752009043709,-460.0,0.00019452,2]
[370415310,1752009043718,-460.0,0.00019452,2]
[370415311,1752009043727,-460.0,0.00019452,2]
[370415312,1752009043738,-460.0,0.00019452,2]
[370415313,1752009043747,-460.0,0.00019452,2]
[370415314,1752009043757,-460.0,0.00019452,2]
[370415315,1752009043766,-460.0,0.00019452,2]
[370415316,1752009043775,-460.0,0.00019452,2]
[370415317,1752009043784,-460.0,0.00019452,2]
[370415318,1752009043794,-2630.99,0.00019452,2]
[370415319,1752009043803,-460.0,0.00019452,2]
[370415320,1752009043813,-556.37829816,0.00019452,2]
[370415321,1752009043822,-460.0,0.00019452,2]
[370415322,1752009043831,-460.0,0.00019452,2]
[370415323,1752009043840,-597.22520661,0.00019489,2]
[370415324,1752009043849,-9508.8484283,0.00019499,2]
[370415325,1752009043858,-162.032063,0.00019539,2]
[370415326,1752009043868,-163.082623,0.00019599,2]
[370415327,1752009043877,-162.032063,0.00019656,2]
[370415328,1752009043887,-460.0,0.00019726,2]
[370415329,1752009043896,-242.79707853,0.00019726,2]
[370415330,1752009043905,-460.0,0.00019726,2]
[370415331,1752009043914,-460.0,0.00019726,2]
[370415332,1752009043924,-460.0,0.00019726,2]
[370415333,1752009043933,-460.0,0.00019726,2]
[370415334,1752009043943,-460.0,0.00019726,2]
[370415335,1752009043952,-154.92080253,0.00019726,2]
[370415336,1752009043961,-460.0,0.00019726,2]
[370415337,1752009043971,-460.0,0.00019726,2]
[370415338,1752009043980,-578.93889978,0.00019726,2]
[370415339,1752009043990,-505.27,0.00019726,2]
[370415340,1752009044000,-460.0,0.00019726,2]
[370415341,1752009044009,-199.579521,0.00019726,2]
[370415342,1752009044018,-465.72464833,0.00019726,2]
[370415343,1752009044028,-460.0,0.00019726,2]
[370415344,1752009044037,-460.0,0.00019726,2]
[370415345,1752009044156,-460.0,0.00019726,2]
[370415346,1752009044182,-460.0,0.00019726,2]
[370415347,1752009044192,-460.0,0.00019726,2]
[370415348,1752009044202,-400.08115534,0.00019726,2]
[370415349,1752009044211,-460.0,0.00019726,2]
[370415350,1752009044220,-524.34,0.00019726,2]
[370415351,1752009044233,-460.0,0.00019726,2]
[370415352,1752009044254,-460.0,0.00019726,2]
[370415353,1752009044263,-460.0,0.00019726,2]
[370415354,1752009044272,-460.0,0.00019726,2]
[370415355,1752009044282,-460.27,0.00019726,2]
[370415356,1752009044291,-460.0,0.00019726,2]
[370415357,1752009044300,-460.0,0.00019726,2]
[370415358,1752009044309,-460.0,0.00019726,2]
[370415359,1752009044319,-460.0,0.00019726,2]
[370415360,1752009044328,-460.0,0.00019726,2]
[370415361,1752009044337,-460.0,0.00019726,2]
[370415362,1752009044346,-460.0,0.00019726,2]
[370415363,1752009044355,-460.0,0.00019726,2]
[370415364,1752009044364,-460.0,0.00019726,2]
[370415365,1752009044374,-598.75,0.00019726,2]
[370415366,1752009044383,-460.0,0.00019726,2]
[370415367,1752009044392,-460.0,0.00019726,2]
[370415368,1752009044402,-460.0,0.00019726,2]
[370415369,1752009044411,-460.0,0.00019726,2]
[370415370,1752009044420,-601.07,0.00019726,2]
[370415371,1752009044429,-460.0,0.00019726,2]
[370415372,1752009044438,-460.0,0.00019726,2]
[370415373,1752009044447,-460.0,0.00019726,2]
[370415374,1752009044456,-460.0,0.00019726,2]
[370415375,1752009044465,-460.0,0.00019726,2]
[370415376,1752009044474,-460.0,0.00019726,2]
[370415377,1752009044483,-605.92,0.00019726,2]
[370415378,1752009044492,-717.41,0.00019726,2]
[370415379,1752009044501,-460.0,0.00019726,2]
[370415380,1752009044511,-562.72,0.00019726,2]
[370415381,1752009044520,-460.0,0.00019726,2]
[370415382,1752009044529,-460.0,0.00019726,2]
[370415383,1752009044538,-867.54,0.00019726,2]
[370415384,1752009044547,-460.0,0.00019726,2]
[370415385,1752009044557,-460.0,0.00019726,2]
[370415386,1752009044566,-2251.31,0.00019726,2]
[370415387,1752009044575,-460.0,0.00019726,2]
[370415388,1752009044584,-460.0,0.00019726,2]
[370415389,1752009044593,-740.9,0.00019726,2]
[370415390,1752009044602,-1626.65,0.00019726,2]
[370415391,1752009044612,-466.02,0.00019726,2]
[370415392,1752009044621,-460.0,0.00019726,2]
[370415393,1752009044630,-877.06,0.00019726,2]
[370415394,1752009044639,-460.0,0.00019726,2]
[370415395,1752009044648,-460.0,0.00019726,2]
[370415396,1752009044658,-460.0,0.00019726,2]
[370415397,1752009044666,-609.28,0.00019726,2]
[370415398,1752009044675,-460.0,0.00019726,2]
[370415399,1752009044685,-475.78,0.00019726,2]
[370415400,1752009044694,-460.0,0.00019726,2]
[370415401,1752009044703,-768.05,0.00019726,2]
[370415402,1752009044712,-460.0,0.00019726,2]
[370415403,1752009044721,-460.0,0.00019726,2]
[370415404,1752009044730,-460.0,0.00019726,2]
[370415405,1752009044740,-460.0,0.00019726,2]
[370415406,1752009044749,-460.0,0.00019726,2]
[370415407,1752009044758,-584.58,0.00019726,2]
[370415408,1752009044767,-460.0,0.00019726,2]
[370415409,1752009044776,-460.0,0.00019726,2]
[370415410,1752009044785,-1330.68,0.00019726,2]
[370415411,1752009044794,-460.0,0.00019726,2]
[370415412,1752009044803,-1675.2,0.00019726,2]
[370415413,1752009044812,-460.0,0.00019726,2]
[370415414,1752009044822,-1430.67,0.00019726,2]
[370415415,1752009044831,-460.0,0.00019726,2]
[370415416,1752009044841,-460.0,0.00019726,2]
[370415417,1752009044851,-460.0,0.00019726,2]
[370415418,1752009044860,-460.0,0.00019726,2]
[370415419,1752009044869,-479.62,0.00019726,2]
[370415420,1752009044879,-460.0,0.00019726,2]
[370415421,1752009044888,-2569.93,0.00019726,2]
[370415422,1752009044897,-460.0,0.00019726,2]
[370415423,1752009044907,-496.02,0.00019726,2]
[370415424,1752009044917,-460.0,0.00019726,2]
[370415425,1752009044926,-536.66,0.00019726,2]
[370415426,1752009044935,-460.0,0.00019726,2]
[370415427,1752009044945,-361.61130644,0.00019726,2]
[370415428,1752009044954,-460.0,0.00019726,2]
[370415429,1752009044963,-366.48812711,0.00019726,2]
[370415430,1752009044972,-474.17,0.00019726,2]
[370415431,1752009044981,-636.47,0.00019726,2]
[370415432,1752009044990,-921.44,0.00019726,2]
[370415433,1752009045000,-460.0,0.00019726,2]
[370415434,1752009045009,-460.0,0.00019726,2]
[370415435,1752009045018,-345.19701995,0.00019726,2]
[370415436,1752009045027,-460.0,0.00019726,2]
[370415437,1752009045036,-899.34,0.00019726,2]
[370415438,1752009045045,-460.0,0.00019726,2]
[370415439,1752009045055,-781.95,0.00019726,2]
[370415440,1752009045064,-460.0,0.00019726,2]
[370415441,1752009045073,-460.0,0.00019726,2]
[370415442,1752009045083,-460.0,0.00019726,2]
[370415443,1752009045092,-460.0,0.00019726,2]
[370415444,1752009045102,-460.0,0.00019726,2]
[370415445,1752009045111,-460.0,0.00019726,2]
[370415446,1752009045120,-460.0,0.00019726,2]
[370415447,1752009045129,-460.0,0.00019726,2]
[370415448,1752009045139,-2630.99,0.00019726,2]
[370415449,1752009045149,-460.0,0.00019726,2]
[370415450,1752009045158,-460.0,0.00019726,2]
[370415451,1752009045170,-460.0,0.00019726,2]
[370415452,1752009045180,-162.032063,0.00019773,2]
[370415453,1752009045189,-207.4,0.00019838,2]
[370415455,1752009045199,-500.0,0.00019861,2]
[370415456,1752009045208,-162.032063,0.0001989,2]
[370415457,1752009045218,-597.22520661,0.000199,2]
[370415458,1752009045228,-3750.24918285,0.000199,2]
[370415459,1752009045238,-256277.68145617,0.00019904,2]
[370415462,1752009045652,-495.4,0.00019178,2]
[370415463,1752009045662,-460.0,0.00019178,2]
[370415464,1752009045672,-185.013299,0.00019178,2]
[370415465,1752009045683,-495.4,0.00019452,2]
[370415467,1752009045692,-460.0,0.00019452,2]
[370415468,1752009045701,-495.4,0.00019726,2]
[370415469,1752009045711,-460.0,0.00019726,2]
[370415470,1752009045721,-5499.83130118,0.00019904,2]
[370415471,1752009045732,-159634.08575358,0.00019904,2]
[370415472,1752009046009,-214.27093075,0.00019178,2]
[370415473,1752009046019,-460.0,0.00019178,2]
[370415474,1752009046029,-1515.76389906,0.00019904,2]
[370415475,1752009046040,-5603.96887458,0.00019904,2]
[370415476,1752009046052,-761.60007,0.00019904,2]
[370415477,1752009046063,-810.6205378,0.00019904,2]
[370415478,1752009046075,-679.17,0.00019904,2]
[370415479,1752009214445,201.98465879,0.00018072,2]
[370415480,1752009410384,-157.17887148,0.00018153,2]
[370415481,1752009413373,-161.91364474,0.00018153,2]
[370415482,1752009415593,-76.64005828,0.00018153,2]
[370415483,1752009430999,626.715472,0.00013699,2]
[370415485,1752009443893,168.79923036,0.00018031,2]
[370415487,1752009674915,-319.0892837,0.00018152,2]
[370415488,1752009733347,-219.28073427,0.00018152,2]
[370415489,1752009735471,-202.6422152,0.00018152,2]
[370415490,1752009739191,-185.35742956,0.00018152,2]
[370415491,1752009740753,-158.72936752,0.00018152,2]
[370415492,1752009742843,-204.95116927,0.00018152,2]
[370415493,1752009745514,-316.35821065,0.00018152,2]
[370415494,1752009746796,339.22882119,0.00018031,2]
[370415495,1752009749123,-219.53189939,0.00018152,2]
[370415496,1752009750917,-169.57101679,0.00018152,2]
[370415497,1752009753051,-324.64989268,0.00018152,2]
[370415498,1752009766385,-213.75569615,0.00018152,2]
[370415499,1752009769487,-299.4579894,0.00018152,2]
[370415500,1752009773548,-160.0,0.00018152,2]
[370415501,1752009775623,-386.34034267,0.00018152,2]
[370415502,1752009777890,-269.19239366,0.00018152,2]
[370415503,1752009791220,-309.54254539,0.00018152,2]
[370415504,1752009795066,-164.26292697,0.00018152,2]
[370415505,1752009796704,-161.31113428,0.00018152,2]
[370415506,1752009799776,-206.93225196,0.00018152,2]
[370415507,1752009802009,-250.79596241,0.00018152,2]
[370415508,1752009804115,1642.4914509,0.00018133,2]
[370415509,1752009804615,-286.98844863,0.00018152,2]
[370415510,1752009807208,-396.93568831,0.00018152,2]
[370415511,1752009810620,-206.96371619,0.00018152,2]
[370415512,1752009815123,-275.62820438,0.00018152,2]
[370415513,1752009817873,-287.05775411,0.00018152,2]
[370415514,1752009820510,-168.36966351,0.00018152,2]
[370415515,1752009842277,300.0,0.00018151,2]
[370415516,1752009903177,300.0,0.00018151,2]
[370415517,1752009903926,1200.0,0.00018151,2]
[370415518,1752009904429,300.0,0.00018151,2]
[370415519,1752009905233,2313.2314738,0.00027397,120]
[370415541,1752009962814,300.0,0.00018151,2]
[370415542,1752009976302,256.19848577,0.00018091,2]
[370415543,1752010000237,2800.5,0.00027397,120]
[370415544,1752010024169,300.0,0.00018151,2]
[370415545,1752010074865,53549.79460234,0.00018,2]
[370415546,1752010083409,300.0,0.00018151,2]
[370415547,1752010091216,423.296966,0.00018109,2]
[370415551,1752010125082,1493.310178,0.00027397,120]
[370415552,1752010143914,300.0,0.00018151,2]
[370415563,1752010203434,300.0,0.00018151,2]
[370415610,1752010232175,-1363.860003,0.00018152,2]
[370415622,1752010232287,-596.46,0.00018152,2]
[370415675,1752010238068,-3390.07,0.00018152,2]
[370415677,1752010238080,-11546.80322602,0.00018152,2]
[370415723,1752010238533,-1958.20011763,0.00018152,2]
[370415724,1752010238544,-500.0,0.00018191,2]
[370415725,1752010238553,-170.97955194,0.00018603,2]
[370415726,1752010238563,-1277.934315,0.00019,2]
[370415727,1752010238572,-166.75604629,0.00019177,2]
[370415728,1752010238582,-192.8345997,0.00019177,2]
[370415729,1752010238591,-460.0,0.00019178,2]
[370415730,1752010238601,-460.0,0.00019178,2]
[370415731,1752010238611,-460.0,0.00019178,2]
[370415732,1752010238620,-460.0,0.00019178,2]
[370415733,1752010238630,-160.320003,0.00019178,2]
[370415734,1752010238640,-485.77594695,0.00019178,2]
[370415735,1752010238649,-460.0,0.00019178,2]
[370415736,1752010238663,-460.0,0.00019178,2]
[370415737,1752010238672,-460.0,0.00019178,2]
[370415738,1752010238682,-460.0,0.00019178,2]
[370415739,1752010238691,-460.0,0.00019178,2]
[370415740,1752010238702,-421.30003665,0.00019178,2]
[370415741,1752010238712,-460.0,0.00019178,2]
[370415742,1752010238722,-460.0,0.00019178,2]
[370415743,1752010238732,-354.89810426,0.00019178,2]
[370415744,1752010238742,-460.0,0.00019178,2]
[370415745,1752010238752,-460.0,0.00019178,2]
[370415746,1752010238762,-460.0,0.00019178,2]
[370415747,1752010238772,-460.0,0.00019178,2]
[370415748,1752010238782,-460.0,0.00019178,2]
[370415749,1752010238792,-460.0,0.00019178,2]
[370415750,1752010238802,-460.0,0.00019178,2]
[370415751,1752010238811,-553.25,0.00019178,2]
[370415752,1752010238821,-520.83757941,0.00019178,2]
[370415753,1752010238831,-460.0,0.00019178,2]
[370415754,1752010238841,-460.0,0.00019178,2]
[370415755,1752010238850,-460.0,0.00019178,2]
[370415756,1752010238860,-460.0,0.00019178,2]
[370415757,1752010238870,-460.0,0.00019178,2]
[370415758,1752010238880,-460.0,0.00019178,2]
[370415759,1752010238890,-460.0,0.00019178,2]
[370415760,1752010238900,-460.0,0.00019178,2]
[370415761,1752010238909,-477.96,0.00019178,2]
[370415763,1752010238918,-460.0,0.00019178,2]
[370415764,1752010238928,-460.0,0.00019178,2]
[370415765,1752010238937,-460.0,0.00019178,2]
[370415766,1752010238947,-460.0,0.00019178,2]
[370415767,1752010238956,-460.0,0.00019178,2]
[370415770,1752010238971,-460.0,0.00019178,2]
[370415772,1752010238981,-460.0,0.00019178,2]
[370415774,1752010238990,-460.0,0.00019178,2]
[370415776,1752010239000,-460.0,0.00019178,2]
[370415778,1752010239010,-460.0,0.00019178,2]
[370415780,1752010239019,-460.0,0.00019178,2]
[370415782,1752010239028,-460.0,0.00019178,2]
[370415784,1752010239038,-460.0,0.00019178,2]
[370415786,1752010239047,-460.0,0.00019178,2]
[370415788,1752010239056,-785.06,0.00019178,2]
[370415790,1752010239067,-594.16,0.00019178,2]
[370415792,1752010239076,-460.0,0.00019178,2]
[370415794,1752010239086,-460.0,0.00019178,2]
[370415796,1752010239096,-460.0,0.00019178,2]
[370415798,1752010239106,-460.0,0.00019178,2]
[370415800,1752010239116,-460.0,0.00019178,2]
[370415803,1752010239125,-460.0,0.00019178,2]
[370415804,1752010239135,-460.0,0.00019178,2]
[370415806,1752010239144,-511.54,0.00019178,2]
[370415808,1752010239154,-460.0,0.00019178,2]
[370415810,1752010239163,-460.0,0.00019178,2]
[370415813,1752010239173,-460.0,0.00019178,2]
[370415815,1752010239184,-460.0,0.00019178,2]
[370415816,1752010239195,-460.0,0.00019178,2]
[370415818,1752010239205,-460.0,0.00019178,2]
[370415820,1752010239214,-460.0,0.00019178,2]
[370415823,1752010239224,-2015.65,0.00019178,2]
[370415824,1752010239234,-460.0,0.00019178,2]
[370415826,1752010239244,-420.14929525,0.00019178,2]
[370415969,1752010240596,-0.0055976,0.00019178,2]
[370416271,1752010243215,-39.84510715,0.00019178,2]
[370416273,1752010243225,-460.0,0.00019178,2]
[370416275,1752010243235,-460.0,0.00019178,2]
[370416277,1752010243244,-460.0,0.00019178,2]
[370416280,1752010243254,-1468.14,0.00019178,2]
[370416283,1752010243264,-460.0,0.00019178,2]
[370416285,1752010243273,-460.0,0.00019178,2]
[370416287,1752010243282,-460.0,0.00019178,2]
[370416290,1752010243293,-531.64323192,0.00019178,2]
[370416292,1752010243302,-669.47,0.00019178,2]
[370416294,1752010243312,-460.0,0.00019178,2]
[370416296,1752010243320,-1226.62,0.00019178,2]
[370416297,1752010243329,-546.54,0.00019178,2]
[370416300,1752010243339,-530.68,0.00019178,2]
[370416302,1752010243348,-291.80930571,0.00019178,2]
[370416304,1752010243357,-154.2271676,0.00019178,2]
[370416306,1752010243367,-460.0,0.00019178,2]
[370416307,1752010243376,-460.0,0.00019178,2]
[370416309,1752010243386,-460.0,0.00019178,2]
[370416312,1752010243395,-460.0,0.00019178,2]
[370416314,1752010243404,-460.0,0.00019178,2]
[370416316,1752010243413,-460.0,0.00019178,2]
[370416317,1752010243422,-460.0,0.00019178,2]
[370416319,1752010243432,-460.0,0.00019178,2]
[370416322,1752010243441,-1725.45,0.00019178,2]
[370416324,1752010243451,-460.0,0.00019178,2]
[370416326,1752010243460,-460.0,0.00019178,2]
[370416328,1752010243469,-1491.33,0.00019178,2]
[370416329,1752010243479,-2321.08,0.00019178,2]
[370416332,1752010243489,-1284.33,0.00019178,2]
[370416334,1752010243499,-815.49,0.00019178,2]
[370416336,1752010243508,-571.45,0.00019178,2]
[370416338,1752010243517,-460.0,0.00019178,2]
[370416340,1752010243527,-460.0,0.00019178,2]
[370416342,1752010243537,-460.0,0.00019178,2]
[370416344,1752010243547,-595.24,0.00019178,2]
[370416345,1752010243556,-460.0,0.00019178,2]
[370416348,1752010243566,-460.0,0.00019178,2]
[370416350,1752010243575,-836.18,0.00019178,2]
[370416352,1752010243585,-460.0,0.00019178,2]
[370416353,1752010243594,-460.0,0.00019178,2]
[370416356,1752010243603,-2393.08,0.00019178,2]
[370416358,1752010243613,-703.37,0.00019178,2]
[370416359,1752010243622,-460.0,0.00019178,2]
[370416362,1752010243631,-460.0,0.00019178,2]
[370416364,1752010243641,-460.0,0.00019178,2]
[370416366,1752010243652,-460.0,0.00019178,2]
[370416368,1752010243663,-1296.09,0.00019178,2]
[370416370,1752010243673,-460.0,0.00019178,2]
[370416372,1752010243683,-460.0,0.00019178,2]
[370416373,1752010243692,-460.0,0.00019178,2]
[370416375,1752010243703,-460.0,0.00019178,2]
[370416378,1752010243714,-951.87,0.00019178,2]
[370416380,1752010243725,-460.0,0.00019178,2]
[370416382,1752010243735,-460.0,0.00019178,2]
[370416383,1752010243745,-825.78,0.00019178,2]
[370416385,1752010243755,-190.95155439,0.00019178,2]
[370416388,1752010243765,-460.0,0.00019178,2]
[370416389,1752010243777,-460.0,0.00019178,2]
[370416392,1752010243786,-460.0,0.00019178,2]
[370416394,1752010243795,-460.0,0.00019178,2]
[370416395,1752010243806,-460.0,0.00019178,2]
[370416397,1752010243816,-460.0,0.00019178,2]
[370416399,1752010243827,-460.0,0.00019178,2]
[370416402,1752010243838,-460.0,0.00019178,2]
[370416404,1752010243847,-460.0,0.00019178,2]
[370416406,1752010243856,-465.13405533,0.00019178,2]
[370416408,1752010243865,-666.0,0.00019178,2]
[370416409,1752010243874,-187.292631,0.00019178,2]
[370416412,1752010243884,-9880.1346944,0.00019178,2]
[370416414,1752010243893,-56759.39781442,0.00019329,2]
[370416415,1752010243902,-500.0,0.00019451,2]
[370416417,1752010243912,-284.56965119,0.00019451,2]
[370416420,1752010243921,-500.0,0.00019451,2]
[370416422,1752010243930,-500.0,0.00019451,2]
[370416424,1752010243939,-500.0,0.00019451,2]
[370416425,1752010243949,-500.0,0.00019451,2]
[370416428,1752010243958,-500.0,0.00019451,2]
[370416430,1752010243967,-500.0,0.00019451,2]
[370416432,1752010243976,-460.0,0.00019452,2]
[370416434,1752010243985,-370.19784699,0.00019452,2]
[370416436,1752010243995,-460.0,0.00019452,2]
[370416438,1752010244004,-460.0,0.00019452,2]
[370416440,1752010244013,-460.0,0.00019452,2]
[370416442,1752010244022,-460.0,0.00019452,2]
[370416444,1752010244032,-460.0,0.00019452,2]
[370416446,1752010244041,-460.0,0.00019452,2]
[370416448,1752010244050,-590.88,0.00019452,2]
[370416450,1752010244059,-460.0,0.00019452,2]
[370416452,1752010244068,-460.0,0.00019452,2]
[370416454,1752010244077,-553.25,0.00019452,2]
[370416456,1752010244087,-460.0,0.00019452,2]
[370416457,1752010244096,-145.23098079,0.00019452,2]
[370416499,1752010244490,-314.76901921,0.00019452,2]
[370416501,1752010244499,-460.0,0.00019452,2]
[370416503,1752010244509,-460.0,0.00019452,2]
[370416505,1752010244518,-460.0,0.00019452,2]
[370416507,1752010244528,-460.0,0.00019452,2]
[370416510,1752010244539,-477.96,0.00019452,2]
[370416512,1752010244548,-460.0,0.00019452,2]
[370416514,1752010244558,-460.0,0.00019452,2]
[370416516,1752010244567,-151.0,0.00019452,2]
[370416518,1752010244576,-198.59516479,0.00019452,2]
[370416520,1752010244586,-460.0,0.00019452,2]
[370416522,1752010244596,-460.0,0.00019452,2]
[370416524,1752010244605,-460.0,0.00019452,2]
[370416526,1752010244614,-460.0,0.00019452,2]
[370416528,1752010244623,-460.0,0.00019452,2]
[370416530,1752010244633,-460.0,0.00019452,2]
[370416532,1752010244642,-460.0,0.00019452,2]
[370416533,1752010244651,-785.06,0.00019452,2]
[370416536,1752010244664,-460.0,0.00019452,2]
[370416538,1752010244673,-460.0,0.00019452,2]
[370416540,1752010244682,-460.0,0.00019452,2]
[370416542,1752010244691,-460.0,0.00019452,2]
[370416544,1752010244702,-511.54,0.00019452,2]
[370416546,1752010244712,-460.0,0.00019452,2]
[370416548,1752010244721,-460.0,0.00019452,2]
[370416550,1752010244732,-460.0,0.00019452,2]
[370416552,1752010244742,-460.0,0.00019452,2]
[370416554,1752010244752,-460.0,0.00019452,2]
[370416556,1752010244762,-460.0,0.00019452,2]
[370416558,1752010244771,-460.0,0.00019452,2]